Cogmind - Beta 14 @@@ ROGUE MODE // 2024.11.07 @ 21:49:00 Player: OG DANIEL Result: Destroyed by G-47 Trooper with Particle Gun Performance ------------- Evolutions (2) 1000 Regions Visited (3) 600 Robots Destroyed (39) 195 Value Destroyed (1226) 1226 Prototype IDs (0) 0 Alien Tech Used (0) 0 Bonus (204) 204 TOTAL SCORE: 3225 Bonus ------- Pacifist 200 High Alert Combat Kills 4 Cogmind --------- Core Integrity 0/550 Matter 243/300 Energy 160/160 System Corruption 0% Temperature Warm (141) Movement Walking (120) Location -8/Materials Parts ------- > --- POWER (2) -------- Light Nuclear Core > --- PROPULSION (4) --- Aluminum Leg Aluminum Leg > --- UTILITY (3) ------ Advanced Visual Processing Unit Advanced Targeting Computer Core Analyzer > --- WEAPON (2) ------- Beam Rifle Particle Gun > --- INVENTORY (5) ---- Aluminum Leg Aluminum Leg Peak State ------------ > --- POWER ------------ Nuclear Core > --- PROPULSION ------- Improved Treads Aluminum Leg VSS Leg VSS Leg > --- UTILITY ---------- Small Storage Unit Advanced Targeting Computer Light Armor Plating > --- WEAPON ----------- Heavy Assault Rifle High-powered Shotgun > --- INVENTORY -------- Light Treads Aluminum Leg Beam Rifle Assault Rifle Light Assault Rifle Light Assault Rifle Light Assault Rifle Heavy Assault Rifle [Rating: 23] Favorites ----------- Power Ion Engine Engine Ion Engine Power Core Nuclear Core Propulsion Aluminum Leg Treads Light Treads Leg Aluminum Leg Wheel Compact Wheel Utility Small Storage Unit Device Weight Redist. System Storage Small Storage Unit Processor Advanced Targeting Computer Protection Light Armor Plating Weapon Small Laser Energy Gun Small Laser Ballistic Gun Heavy Assault Rifle Ballistic Cannon Assault Cannon Build | -11 -10 -9 -8 ------- Run | Yrd Mat Mat Mat Slots Evolved 4 | . . 2 2 Power 1 | . . . 1 Propulsion 2 | . . 2 . Utility 1 | . . . 1 Weapon . | . . . . Parts Attached 61 | 11 . 20 30 Power 8 | 2 . 3 3 Engine 6 | 2 . 3 1 Core 2 | . . . 2 Reactor . | . . . . Propulsion 23 | 6 . 5 12 Treads 10 | 4 . 2 4 Leg 12 | 1 . 3 8 Wheel 1 | 1 . . . Hover . | . . . . Flight . | . . . . Utility 7 | 1 . 2 4 Device 2 | . . 2 . Storage 1 | 1 . . . Processor 3 | . . . 3 Hackware . | . . . . Protection 1 | . . . 1 Artifact . | . . . . Weapon 23 | 2 . 10 11 Energy Gun 7 | 2 . 3 2 Energy Cannon . | . . . . Ballistic Gun 14 | . . 7 7 Ballistic Cannon 2 | . . . 2 Launcher . | . . . . Special Weapon . | . . . . Impact Weapon . | . . . . Slashing Weapon . | . . . . Piercing Weapon . | . . . . Special Melee Weapon . | . . . . Unidentified Prototypes . | . . . . Corrupted Parts 2 | . . 2 . System Corruption 6 | . . 6 . Parts Lost 25 | . . . 25 Power 3 | . . . 3 Propulsion 12 | . . . 12 Utility 2 | . . . 2 Weapon 8 | . . . 8 Highest Loss Streak 7 | . . . 7 To Critical Strikes . | . . . . Average Slot Usage (%) 79 | . 85 86 71 Engine 7 | . 14 10 2 Core 2 | . . . 5 Treads 20 | . 28 28 9 Leg 15 | . . 14 21 Storage 8 | . 14 11 5 Processor 4 | . . . 9 Energy Gun 10 | . 28 12 3 Ballistic Gun 8 | . . 9 10 Peak Build Rating 23 | 6 6 14 23 Average Rating 11 | 5 6 11 15 On Entrance 5 | . 6 6 11 Naked Turns . | . . . . Heaviest Build 21 | 13 13 18 21 Greatest Support 86 | 40 40 86 45 Greatest Overweight (x) 3 | . . . 3 Average Overweight (x) . | . . . . Largest Inventory Capacity 8 | 8 8 8 8 Average Capacity 7 | 6 8 8 6 Most Carried 8 | 6 7 8 8 Average Carried 6 | 3 6 7 5 Final Capacity 8 | 8 8 8 5 Final Carried 8 | 5 7 8 2 Class Distribution -------------------- 59% | Mutant 40% | Scavenger-Mutant Dominant Class ---------------- Mutant | -10/Materials Mutant | -9/Materials Scavenger-Mutant | -8/Materials Resources | -11 -10 -9 -8 ----------- Run | Yrd Mat Mat Mat Matter Collected 1111 | 185 . 450 476 Remotely . | . . . . Salvage Created 1375 | . . 701 674 Parts 79 | . . 49 30 Haulers Intercepted . | . . . . Recyclers Shooed 1 | . . 1 . Parts Field Recycled . | . . . . Retrieved Matter . | . . . . Parts Self-Destructed . | . . . . Prevented . | . . . . Kills | -11 -10 -9 -8 ------- Run | Yrd Mat Mat Mat Combat Hostiles Destroyed 37 | . . 19 18 Guns 33 | . . 19 14 Cannons 4 | . . . 4 Classes Destroyed 7 | . . 5 2 Recycler 1 | . . 1 . Watcher 1 | . . 1 . Swarmer 14 | . . 10 4 Grunt 10 | . . 5 5 Sentry 8 | . . 4 4 Specialist 4 | . . . 4 Heavy 1 | . . . 1 Best Kill Streak 6 | . . 3 6 Combat Bots Only 6 | . . 3 6 Max Kills in Single Turn 1 | . . 1 1 Gunslinging . | . . . . Exploded . | . . . . Melee . | . . . . Uniques/NPCs Destroyed . | . . . . Combat | -11 -10 -9 -8 -------- Run | Yrd Mat Mat Mat Hostile Shots Fired 342 | . . 108 234 Missed 91 | . . 25 66 Damage Taken 3792 | . . 852 2940 Core 689 | . . 138 551 Absorbed by Shields . | . . . . Core Remaining (%) 88 | 100 100 65 . Volleys Fired 140 | . . 54 86 Largest 2 | . . 2 2 Hottest 121 | . . 85 121 Shots Fired 252 | . . 108 144 Gun 222 | . . 108 114 Cannon 30 | . . . 30 Launcher . | . . . . Special . | . . . . Kinetic 165 | . . 46 119 Thermal 66 | . . 41 25 Explosive . | . . . . Electromagnetic 21 | . . 21 . Robot Hit Streak 20 | . . 17 20 Robot Miss Streak 6 | . . 6 4 Penetration Max . | . . . . Secondary Targets 4 | . . 1 3 Max Gunslinging Chain 1 | . . 1 1 Shots Hit Robots 178 | . . 76 102 Core Hits 76 | . . 31 45 Critical Kills . | . . . . Critical Parts Destroyed . | . . . . Critical Strikes 3 | . . 1 2 Blast 2 | . . . 2 Corrupt 1 | . . 1 . Melee Attacks . | . . . . Impact . | . . . . Slashing . | . . . . Piercing . | . . . . Sneak Attacks . | . . . . Combat Hostiles . | . . . . Follow-up Attacks . | . . . . Damage Inflicted 2721 | 3 . 980 1738 Guns 2075 | . . 955 1120 Cannons 601 | . . . 601 Explosions . | . . . . Melee . | . . . . Ramming 45 | 3 . 25 17 Kinetic 1954 | . . 458 1496 Thermal 527 | . . 302 225 Explosive . | . . . . Electromagnetic 195 | . . 195 . Impact . | . . . . Slashing . | . . . . Piercing . | . . . . Highest Corruption 6 | . . 6 . Average Corruption 5 | . . 5 . Corruption Purged . | . . . . Corruption Blocked . | . . . . Effects 15 | . . 15 . Message Errors 4 | . . 4 . Matter Fused 4 | . . 4 . Heat Flow Errors 2 | . . 2 . Energy Discharges 3 | . . 3 . Data Loss (minor) 1 | . . 1 . Alerts 1 | . . 1 . Overload Shots . | . . . . Overflow Damage . | . . . . Projectiles . | . . . . Explosions . | . . . . Melee . | . . . . Knockbacks 9 | . . . 9 Impact 1 | . . . 1 Kinetic 7 | . . . 7 Secondary 1 | . . . 1 Self-Inflicted Damage . | . . . . Shots . | . . . . Rammed 1 | 1 . . . Targets Rammed 14 | 1 . 6 7 Kicked 13 | . . 6 7 Crushed . | . . . . Highest Temperature 277 | . . 277 123 Average Temperature 34 | . . 50 19 Received Heat Transfer 852 | . . 159 693 Siege Activations . | . . . . Robots Corrupted . | . . . . Combat Hostiles . | . . . . Parts Fried 1 | . . 1 . Impact Corruptions . | . . . . Robots Melted . | . . . . Combat Hostiles . | . . . . Parts Melted 1 | . . 1 . Heat Transferred 1198 | . . 675 523 Parts Sabotaged . | . . . . Parts Stolen . | . . . . Parts Stripped . | . . . . Power Chain Reactions . | . . . . Alert | -11 -10 -9 -8 ------- Run | Yrd Mat Mat Mat Peak Influence 435 | . 15 435 309 Initial 141 | . . 5 141 Average 174 | . 11 213 206 Maximum Alert Level 2 | . . 2 1 Low Security (%) 56 | 100 100 50 44 Level 1 38 | . . 38 55 Level 2 4 | . . 10 . Level 3 . | . . . . Level 4 . | . . . . Level 5 . | . . . . High Security . | . . . . Max Security . | . . . . Squads Dispatched 8 | . 1 3 4 Investigation 2 | . . 2 . Extermination . | . . . . Reinforcement 6 | . 1 1 4 Assault . | . . . . Garrison . | . . . . Intercept . | . . . . Searches Triggered . | . . . . Construction Impeded . | . . . . Haulers Reinforced . | . . . . Active Scanning Responses . | . . . . Cargo Convoy Interrupts . | . . . . Stealth | -11 -10 -9 -8 --------- Run | Yrd Mat Mat Mat Distress Signals 4 | . . 3 1 Communications Jammed . | . . . . Distress Signals . | . . . . Times Spotted 58 | . 1 28 29 Peak Tracking Total 5 | . 1 4 5 Tactical Retreats 10 | . . 5 5 Traps | -11 -10 -9 -8 ------- Run | Yrd Mat Mat Mat Traps Triggered 2 | . . 2 . Indirectly . | . . . . Trap Hack Attempts . | . . . . Triggered . | . . . . Disarmed . | . . . . Reprogrammed . | . . . . Reused . | . . . . Traps Extracted . | . . . . Installed . | . . . . Triggered . | . . . . Machines | -11 -10 -9 -8 ---------- Run | Yrd Mat Mat Mat Machines Disabled . | . . . . Max in Single Turn . | . . . . Machines Repaired . | . . . . Machines Dismantled . | . . . . Machines Sabotaged . | . . . . Overloaded Fab Kills . | . . . . Hacking | -11 -10 -9 -8 --------- Run | Yrd Mat Mat Mat Machines Accessed 4 | . . 3 1 Terminals 3 | . . 3 . Fabricators . | . . . . Repair Stations 1 | . . . 1 Recycling Units . | . . . . Scanalyzers . | . . . . Garrison Access . | . . . . Total Hacks 5 | . . 4 1 Successful 5 | . . 4 1 Failed . | . . . . Catastrophic . | . . . . Database Lockouts . | . . . . Manual . | . . . . Terminals 4 | . . 4 . Fabricators . | . . . . Repair Stations 1 | . . . 1 Recycling Units . | . . . . Scanalyzers . | . . . . Garrison Access . | . . . . Terminal Hacks 4 | . . 4 . Record 4 | . . 4 . Fabricator Hacks . | . . . . Repair Station Hacks 1 | . . . 1 Scan Component 1 | . . . 1 Recycling Unit Hacks . | . . . . Scanalyzer . | . . . . Garrison Access Hacks . | . . . . Unauthorized Hacks . | . . . . Terminals . | . . . . Fabricators . | . . . . Repair Stations . | . . . . Recycling Units . | . . . . Scanalyzers . | . . . . Garrison Access . | . . . . Data Cores Recovered . | . . . . Used . | . . . . Hacking Detections . | . . . . Full Trace Events . | . . . . Feedback Events . | . . . . Feedback Blocked . | . . . . Robot Schematics Acquired . | . . . . Robots Built . | . . . . Authchips . | . . . . Time . | . . . . Total Robot Build Rating . | . . . . Part Schematics Acquired . | . . . . Parts Built . | . . . . Authchips . | . . . . Time . | . . . . Total Part Build Rating . | . . . . Parts Repaired . | . . . . Time . | . . . . Parts Recycled . | . . . . Recycled Matter . | . . . . Retrieved Matter . | . . . . Retrieved Components . | . . . . Parts Scanalyzed . | . . . . Part Schematics Acquired . | . . . . Parts Damaged . | . . . . Bothacking | -11 -10 -9 -8 ------------ Run | Yrd Mat Mat Mat Used RIF Installer . | . . . . Robots Hacked . | . . . . Non-combat . | . . . . Combat . | . . . . Robot Hacks Applied . | . . . . Relay Couplers Released . | . . . . Fabnet Peak Effective % . | . . . . Robots Rewired . | . . . . Allies Hacked . | . . . . Hacks Repelled . | . . . . Allies | -11 -10 -9 -8 -------- Run | Yrd Mat Mat Mat Total Allies . | . . . . Largest Group . | . . . . Highest-Rated Group . | . . . . Highest-Rated Ally . | . . . . Total Orders . | . . . . Ally Attacks . | . . . . Total Damage . | . . . . Kills . | . . . . Allies Corrupted . | . . . . Allies Melted . | . . . . Intel | -11 -10 -9 -8 ------- Run | Yrd Mat Mat Mat Robot Analysis Total . | . . . . Derelict Logs Recovered . | . . . . Drone Launches . | . . . . Drone Recoveries . | . . . . Exploration | -11 -10 -9 -8 ------------- Run | Yrd Mat Mat Mat Turns Passed 1969 | 88 262 814 805 Spaces Moved 1018 | 51 163 419 385 Core 5 | 4 . . 1 Treads 407 | 29 163 141 74 Legs 588 | . . 278 310 Wheels 18 | 18 . . . Hover . | . . . . Flight . | . . . . Fastest Speed 50 | 50 160 120 90 Average Speed 131 | 130 160 133 116 Slowest Speed 200 | 160 160 160 200 Overloaded Moves . | . . . . Propulsion Burnouts . | . . . . Robots Hopped . | . . . . Cave-ins Triggered . | . . . . Exploration Rate (%) 20 | 4 26 33 20 Regions Visited 3 Branch Regions . Pre-discovered Areas . | . . . . Known Exits Taken . | . . . . Unknown Exits Taken 3 | 1 1 1 . Scrap Searched . | . . . . Spaces Dug . | . . . . Terrain Destroyed 3 | . . . 3 Melee . | . . . . Projectile 3 | . . . 3 AOE . | . . . . Terrain Rammed . | . . . . Walls Destroyed . | . . . . Machines Disabled . | . . . . Actions | -11 -10 -9 -8 --------- Run | Yrd Mat Mat Mat Total 1396 | 68 164 566 598 Wait 128 | 1 . 48 79 Move 1016 | 50 162 419 385 Hop . | . . . . Pick Up 19 | 4 2 4 9 Fast Attach 31 | 6 . 12 13 Attach 15 | 1 . 1 13 Detach 2 | 1 . 1 . Swap 15 | 4 . 7 4 Drop 17 | . . 15 2 Fire 140 | . . 54 86 Melee . | . . . . Ram . | . . . . Kick 12 | . . 5 7 Crush 1 | 1 . . . Escape Stasis . | . . . . Rewire . | . . . . Trap . | . . . . Miscellaneous . | . . . . Route ------- -11/Scrapyard -10/Materials -9/Materials -8/Materials History --------- Turn | Location | Event 8 | -11/Scrapyard | Discovered new exit (range 16) 89 | -11/Scrapyard | Entered Materials 318 | -10/Materials | Build established: Mutant 330 | -10/Materials | Discovered new exit (range 10) 351 | -10/Materials | Entered another Materials area 351 | -9/Materials | Evolved 2 slots: Propulsion x2 1132 | -9/Materials | Discovered new exit (range 9) 1165 | -9/Materials | Entered another Materials area 1165 | -8/Materials | Evolved 2 slots: Power x1, Utility x1 1266 | -8/Materials | Lost 3 parts (1p2n) 1472 | -8/Materials | Lost 5 parts (1p3n1w) 1661 | -8/Materials | Lost 5 parts (3n1u1w) 1791 | -8/Materials | Core integrity fell below 50% 1870 | -8/Materials | Lost 7 parts (1p3n3w) 1951 | -8/Materials | Core integrity fell below 20% 1970 | -8/Materials | Destroyed by G-47 Trooper with Particle Gun Last Messages --------------- 01887_ Kicked K-01 Serf out of the way. 01892_ Acquired 5 matter. 01893_ K-01 Serf collects debris. 01916_ Kicked K-01 Serf out of the way. 01928_ Kicked K-01 Serf. 01939_ Y-45 Defender suffers critical hit (Blast). 01939_ Destroyed Heat Sink. 01943_ Assault Rifle destroyed. 01945_ Y-45 Defender destroyed. 01952_ Critical hit (Burn: +37). 01953_ G-47 Trooper knocked back. 01956_ Aluminum Leg severed. 01958_ R-06 Scavenger collects Lgt. Treads. 01960_ Assault Cannon destroyed. 01961_ Acquired 2 matter. 01964_ M-13 Machinist repairs G-47 Trooper. 01966_ Carbon-fiber Leg destroyed. 01969_ K-01 Serf collects debris. 01970_ Kicked L-31 Rogue out of the way. Map ----- +----------------------------------------------------+ | # # """ #?# #????????????????????????????????? | | # + "R #?# #????????????????????????????????? | | # # """ #?# #????????????????????????????????? | | # # % % #?#####??????#### ##???????????????????? | | + ####+#############? #???????????????????? | | # # #???????????????????? | | # # #???????????????????? | | + + #???????????????????? | | #### """ !# == #???????????????????? | | ##??# """ #### ##??== #???????????????????? | | ????# """ #??# #????? #???????????????????? | | ????# % #??# #??????? #???????????????????? | | ????# #??#%#?????????#???????????????????? | | ????# ####/##########????????????????????? | | ??###########%## T% ! #????????????????????? | | ??# ! #%## % """ """ #????????????????????? | | ??# # # %""" """ #????????????????????? | | ??# """ # + """ """ #????????????????????? | | ??# """ !! %+ %# #????????????????????? | | ??# """ !!= #% #################?????????????????? | | ??# !!= # #???????# #?????????????????? | | ??# #[%#???????# = #?????????????????? | | ??# = #!%#???????# #?????????????????? | | ??###########=*#???????# % o #?????????????????? | | ????######### #???????# =%=% #?????????????????? | | ????# = ## ##########@g####### ???? | | ????# + lmg%u ???? | | ????#""" ## ###########k####### ???? | | ????#""" !## ####### ###% #??????????????????? | | ????#""" ## ## !! #t #??????????????????? | | ????# ## ## !! # #??????????????????? | | ????#####+## #=[ !!! # #??????????????????? | | ??????# %# # #??????????????????? | | ??????# %/!! # "" +??????????????????? | | ????#####+## # % """ # "T ##?????????????????? | | ????# ######" """ # "" #??????????????????? | | ????# #????#"" """ # #??????????????????? | | ????# """ #????# !######??????????????????? | | ????# """ #????##########???????????????????????? | | ????# """ #?????????????????????????????????????? | | ????# #?????????????????????????????????????? | | ????########?????????????????????????????????????? | | ?????????????????????????????????????????????????? | | ?????????????????????????????????????????????????? | | ?????????????????????????????????????????????????? | | ?????????????????????????????????????????????????? | | | | | | | | | +----------------------------------------------------+ Best States ------------- Heat Dissipation 31 Energy Generation 14 Energy Capacity 265 Matter Stores 300 Matter Capacity 300 Sight Range 20 Terrain Scan Density 10 Armor Coverage 150 Evasion (%) 57 Targeting Accuracy 8 Core Analysis 6 Recoil Reduction 4 Item Schematics ----------------- None Robot Schematics ------------------ None Fabricated ------------ Nothing Alien Tech Used ----------------- None Achievements -------------- None Challenges ------------ None Game ------ Seed CloakGyrokineticBattery Manual? 0 Play Time 00:20:54 Cumulative 13.9 hours Start 2024.11.07 @ 21:29:10 End 2024.11.07 @ 21:49:00 Sessions 1 Manual Loads 0 Difficulty Rogue Special Mode None Game No. 47 Rogue 47 Adventurer 0 Explorer 0 Win Type - Total 0 Types 0/0/0/0/0/0/0/0/0 Lore% 7 Gallery% 17 Achievement% 14 Wizard Run 0 Options --------- Layout 1 ASCII 0 Keyboard 0 Movement Numpad Keybinds 0 Fullscreen 1 Font 24/Smallcaps Map View 50x35 Zoom Use 0% Tactical HUD 1 Map Filters NONE Filters NONE Steam 1 RUN: 2ea097ba-d6b1-4c23-b2fe-42a070e21d8f